bitfinex-derivatives/quotes_SOLF0:USTF0_20250125
["timestamp","ask_amount","ask_price","bid_price","bid_amount"]
[1737765080309,15.96842075,249.42,249.21,15.96842075]
[1737765080508,1.00274911,249.41,249.21,15.96842075]
[1737765080807,1.00274911,249.4,249.21,15.96842075]
[1737765081004,1.00276238,249.39,249.21,15.96842075]
[1737765081209,15.96842075,249.42,249.21,15.96842075]
[1737765081407,0.02776569,249.32,249.28,0.02936266]
[1737765081606,4.0113,249.31,249.28,0.02936266]
[1737765081801,0.02710608,249.32,249.28,0.02936266]
[1737765082009,15.96842075,249.42,249.28,0.02936266]
[1737765082205,0.03055656,249.32,249.28,0.02936266]
[1737765082411,15.96842075,249.42,249.28,0.02936266]
[1737765082712,15.96842075,249.38,249.28,0.02936266]
[1737765082907,0.02809592,249.37,249.18,3.9733]
[1737765083102,15.96842075,249.38,249.31,0.02666365]
[1737765083307,0.02597913,249.3,249.18,3.9733]
[1737765084104,4.012,249.27,249.18,3.9733]
[1737765084509,0.0298083,249.25,249.18,3.9733]
[1737765085611,4.0124,249.24,249.18,3.9733]
[1737765085808,0.0298083,249.25,249.18,3.9733]
[1737765086313,0.0298083,249.25,249.13,9.27713754]
[1737765086607,0.0298083,249.25,249.14,3.911]
[1737765086812,0.0298083,249.25,249.17,4.0134]
[1737765088716,4.0127,249.22,249.14,3.911]
[1737765089312,4.013,249.2,249.14,3.911]
[1737765089514,9.27713754,249.24,249.14,3.911]
[1737765089719,0.02890341,249.19,249.11,4.0144]
[1737765089918,0.02890341,249.19,249.1,1.3126]
[1737765090317,0.02890341,249.19,249.13,9.27713754]
[1737765090619,0.02890341,249.19,249.1,1.3126]
[1737765091312,0.02890341,249.19,249.13,9.27713754]
[1737765091514,0.02890341,249.19,249.14,2.6341]
[1737765091719,0.02890341,249.19,249.17,4.0134]
[1737765092019,0.02890341,249.19,249.14,2.6341]
[1737765093920,4.04210341,249.19,249.14,2.6341]
[1737765094516,4.0134,249.18,249.14,2.6341]
[1737765095224,4.0134,249.18,249.05,3.79708055]
[1737765095722,0.03000668,249.14,249.06,4.0152]
[1737765096622,9.27713754,249.33,249.13,9.27713754]
[1737765096925,4.0108,249.34,249.22,9.27713754]
[1737765097121,9.27713754,249.37,249.18,9.27713754]
[1737765097319,1.0031655,249.36,249.18,9.27713754]
[1737765097516,9.27713754,249.37,249.18,13.29043754]
[1737765097719,0.0284955,249.29,249.25,0.03086645]
[1737765098523,0.0284955,249.29,249.26,9.27713754]
[1737765098824,9.27713754,249.41,249.26,9.27713754]
[1737765100024,4.0108,249.34,249.31,0.02543826]
[1737765100222,0.02550085,249.36,249.31,0.02543826]
[1737765103627,9.30263839,249.36,249.31,0.02543826]
[1737765105025,0.02550085,249.36,249.31,0.02543826]
[1737765106023,5.37285917,249.45,249.31,0.02543826]
[1737765106535,1.00278263,249.44,249.31,0.02543826]
[1737765106828,21.49143669,249.46,249.42,4.0094]
[1737765107024,3.6556568,249.46,249.44,14.82510286]
[1737765107224,41.81612438,249.48,249.44,14.82510286]
[1737765107423,15.76202438,249.48,249.47,14.82510286]
[1737765107623,56.20501656,249.5,249.47,18.84510286]
[1737765107830,163.40414198,249.72,249.48,14.82510286]
[1737765108131,163.40414198,249.72,249.64,14.82510286]
[1737765108325,163.40414198,249.72,249.68,14.82510286]
[1737765108529,42.6197933,249.71,249.68,14.82510286]
[1737765108936,42.6197933,249.71,249.68,14.85081573]
[1737765109824,0.02605601,249.72,249.69,259.16756215]
[1737765111137,4.005,249.7,249.69,259.16756215]
[1737765111337,1.08118503,249.83,249.69,125.88138733]
[1737765111533,14.82510286,249.79,249.69,125.88138733]
[1737765111734,14.82510286,249.79,249.69,111.0718458]
[1737765111735,4.0755,249.78,249.69,111.0718458]
[1737765111932,4.005,249.7,249.69,90.8367458]
[1737765112135,14.32133318,249.7,249.69,29.1484458]
[1737765112837,14.32133318,249.7,249.69,0.9467458]
[1737765113031,4.0053,249.68,249.67,1.708e-05]
[1737765113236,7.9853,249.68,249.67,1.708e-05]
[1737765113538,4.0077,249.53,249.43,136.89383467]
[1737765114834,0.0260757,249.5,249.46,0.02754207]
[1737765116941,4.0066,249.6,249.46,0.02754207]
[1737765117142,14.82510286,249.67,249.44,18.83410286]
[1737765117339,14.82510286,249.63,249.44,14.82510286]
[1737765117642,14.82510286,249.63,249.41,1.2604]
[1737765118147,4.0079,249.52,249.5,0.02826467]
[1737765118439,14.82510286,249.59,249.41,1.2604]
[1737765118637,0.02600694,249.53,249.49,0.02824116]
[1737765119342,14.82510286,249.67,249.49,0.02824116]
[1737765119543,14.82510286,249.67,249.46,4.0087]
[1737765119845,14.82510286,249.62,249.41,16.08550286]
[1737765120045,14.82510286,249.62,249.41,1.2604]
[1737765120245,14.82510286,249.58,249.41,1.2604]
[1737765120449,0.02611965,249.54,249.49,0.02853722]
[1737765122244,0.0603,249.71,249.49,0.02853722]
[1737765122450,14.82510286,249.76,249.53,14.82510286]
[1737765122646,14.82510286,249.76,249.54,2.6077]
[1737765123444,0.02806056,249.67,249.63,0.02606386]
[1737765123845,14.82510286,249.76,249.63,0.02606386]
[1737765124042,0.03025522,249.67,249.63,0.02606386]
[1737765124244,14.82510286,249.76,249.63,0.02606386]
[1737765124444,14.82510286,249.8,249.63,0.02606386]
[1737765124651,0.02935947,249.72,249.57,14.82510286]
[1737765124948,14.82510286,249.8,249.57,14.82510286]
[1737765125150,0.02899434,249.67,249.62,14.82510286]
[1737765125350,4.0034,249.8,249.66,4.0055]
[1737765125549,14.82510286,249.84,249.62,14.85476365]
[1737765125550,3.86,249.88,249.67,16.22020286]
[1737765125746,3.86,249.88,249.68,1.3331]
[1737765125949,14.82510286,249.89,249.68,1.3331]
[1737765126348,0.03005236,249.81,249.76,0.0274582]
[1737765128154,14.85515522,249.81,249.67,1.3951]
[1737765128348,14.82510286,249.77,249.6,1.2832]
[1737765128551,4.0053,249.68,249.56,4.0071]
[1737765128948,14.82510286,249.77,249.55,1.2832]
[1737765129345,0.02917913,249.68,249.64,0.03043483]
[1737765129545,3.84,249.82,249.62,14.82510286]
[1737765129753,4.0033,249.81,249.69,4.005]
[1737765129953,14.82510286,249.85,249.69,4.005]
[1737765130255,4.0034,249.8,249.67,4.0053]
[1737765130551,14.82510286,249.85,249.68,1.2969]
[1737765130755,14.82510286,249.85,249.63,1.3915]
[1737765130756,0.02939592,249.76,249.71,0.03055193]
[1737765131056,14.82510286,249.77,249.63,1.3915]
[1737765131253,0.03005818,249.76,249.71,0.02839875]
[1737765132154,4.0044,249.74,249.71,0.02839875]
[1737765132759,4.0045,249.73,249.71,0.02839875]
[1737765136060,4.0042,249.75,249.71,0.02839875]
[1737765136362,0.03005818,249.76,249.71,0.02839875]
[1737765137761,4.0042,249.75,249.71,0.02839875]
[1737765137958,0.03005818,249.76,249.71,0.02839875]
[1737765138362,4.0042,249.75,249.71,0.02839875]
[1737765139954,4.0045,249.73,249.71,0.02839875]
[1737765142166,0.03005818,249.76,249.71,0.02839875]
[1737765143162,4.0042,249.75,249.71,0.02839875]
[1737765143967,0.03005818,249.76,249.71,0.02839875]
[1737765144872,4.0042,249.75,249.71,0.02839875]
[1737765145771,0.03005818,249.76,249.71,0.02839875]
[1737765149778,4.0046,249.73,249.71,0.02839875]
[1737765150173,14.85516104,249.76,249.56,2.684]
[1737765150578,14.82510286,249.76,249.56,6.6911]
[1737765151177,14.82510286,249.76,249.56,2.684]
[1737765151385,0.02979464,249.68,249.64,0.02568066]
[1737765153383,4.03509464,249.68,249.64,0.02568066]
[1737765153986,14.8548975,249.68,249.64,0.02568066]
[1737765154187,14.8548975,249.68,249.49,1.2813]
[1737765154383,14.82510286,249.64,249.49,1.2813]
[1737765154691,4.0069,249.58,249.5,2.651]
[1737765154889,14.82510286,249.64,249.5,2.651]
[1737765155387,0.0260464,249.59,249.55,0.02572801]
[1737765156185,14.82510286,249.56,249.42,1.2772]
[1737765156782,4.0085,249.48,249.42,1.2772]
[1737765156988,14.82510286,249.52,249.38,1.2813]
[1737765157185,14.82510286,249.48,249.33,1.2772]
[1737765157387,4.009,249.45,249.43,0.02800169]
[1737765157585,4.009,249.45,249.33,1.2772]
[1737765159991,0.02564061,249.41,249.37,0.02975603]
[1737765160392,4.0099,249.4,249.37,0.02975603]
[1737765161093,0.02564061,249.41,249.37,0.02975603]
[1737765161991,4.0099,249.39,249.37,0.02975603]
[1737765163688,0.02564061,249.41,249.37,0.02975603]
[1737765164192,14.82510286,249.56,249.37,0.02975603]
[1737765164589,14.82510286,249.56,249.35,2.5963]
[1737765165382,0.02740031,249.48,249.43,0.03073321]
[1737765165587,14.82510286,249.64,249.43,0.03073321]
[1737765165787,4.007,249.58,249.43,0.03073321]
[1737765166088,4.007,249.58,249.38,14.82510286]
[1737765166391,14.82510286,249.6,249.46,4.0087]
[1737765166392,4.0068,249.59,249.46,4.0087]
[1737765166588,14.82510286,249.6,249.46,4.0087]
[1737765166793,0.02680728,249.55,249.5,0.02736502]
[1737765170792,0.02680728,249.55,249.5,1.32736502]
[1737765171294,0.02680728,249.55,249.52,4.0077]
[1737765171598,14.82510286,249.68,249.5,1.32736502]
[1737765171800,14.82510286,249.68,249.5,1.3]
[1737765172588,0.02640106,249.61,249.57,0.02575489]
[1737765173597,4.0067,249.59,249.57,0.02575489]
[1737765173998,4.0076,249.54,249.4,4.0097]
[1737765174187,14.82510286,249.56,249.39,4.0388]
[1737765174795,14.82510286,249.56,249.39,8.0486]
[1737765175094,0.0275938,249.5,249.45,0.02792147]
[1737765176796,4.0357938,249.5,249.45,0.02792147]
[1737765177498,0.0275938,249.5,249.45,0.02792147]
[1737765178691,4.0086,249.48,249.45,0.02792147]
[1737765178896,0.0275938,249.5,249.45,0.02792147]
[1737765179799,3.46,249.63,249.45,0.02792147]
[1737765179995,3.46,249.63,249.42,14.82510286]
[1737765180393,4.0065,249.61,249.42,14.82510286]
[1737765180796,4.0065,249.61,249.47,4.0085]
[1737765181000,0.02932879,249.54,249.49,0.02578474]
[1737765182704,4.0081,249.51,249.49,0.02578474]
[1737765182894,14.82510286,249.52,249.39,2.7609]
[1737765183097,4.0096,249.42,249.39,1.3657]
[1737765183298,4.0096,249.42,249.32,1.3577]
[1737765183508,4.0096,249.42,249.32,2.6995]
[1737765184196,0.02726631,249.39,249.35,0.03004375]
[1737765187399,4.03726631,249.39,249.35,0.03004375]
[1737765187599,0.02726631,249.39,249.35,0.03004375]
[1737765188705,4.0104,249.37,249.35,0.03004375]
[1737765192208,14.82510286,249.36,249.01,2.6478]
[1737765192403,18.24510286,249.36,249.14,4.0138]
[1737765193005,14.82510286,249.32,249.13,7.9387]
[1737765193310,0.02628073,249.27,249.23,0.03043228]
[1737765193610,14.82510286,249.32,249.08,14.82510286]
[1737765193810,0.0302331,249.27,249.23,0.02920922]
[1737765194007,4.0124,249.24,249.12,4.0142]
[1737765194308,4.0124,249.24,249.13,2.6396]
[1737765194509,0.02719499,249.2,249.16,0.02605003]
[1737765197307,4.04029499,249.2,249.16,0.02605003]
[1737765197703,0.02719499,249.2,249.16,0.02605003]
[1737765198103,0.0967,249.35,249.16,0.02605003]
[1737765198306,0.0967,249.35,249.14,1.3235]
[1737765199210,4.0124,249.24,249.22,0.02988133]
[1737765201108,4.0121,249.26,249.22,0.02988133]
[1737765201304,0.02911548,249.27,249.22,0.02988133]
[1737765205215,4.0121,249.26,249.22,0.02988133]
[1737765206016,0.02911548,249.27,249.22,0.02988133]
[1737765208114,4.0125,249.24,249.22,0.02988133]
[1737765209723,0.02911548,249.27,249.22,0.02988133]
[1737765210813,4.0124,249.24,249.22,0.02988133]
[1737765211321,0.02911548,249.27,249.22,0.02988133]
[1737765211521,4.0122,249.26,249.22,0.02988133]
[1737765211722,0.02911548,249.27,249.22,0.02988133]
[1737765215625,4.0121,249.26,249.22,0.02988133]
[1737765219125,4.0122,249.25,249.22,0.02988133]
[1737765219325,0.02911548,249.27,249.22,0.02988133]
[1737765220131,4.0124,249.24,249.22,0.02988133]
[1737765222735,4.0124,249.24,249.22,8.133e-05]
[1737765224529,18.83750286,249.24,249.22,8.133e-05]
[1737765225125,4.0124,249.24,249.22,8.133e-05]
[1737765225837,0.02911548,249.27,249.22,8.133e-05]
[1737765227331,5.310908,249.29,249.22,8.133e-05]
[1737765227535,37.50541607,249.31,249.27,9.27850927]
[1737765227730,27.19421607,249.31,249.27,9.27850927]
[1737765227931,26.23131607,249.31,249.29,4.0114]
[1737765228133,26.23131607,249.31,249.3,9.27850927]
[1737765229136,0.02858742,249.33,249.31,4.0112]
[1737765229737,0.02858742,249.33,249.28,0.0281584]
[1737765231642,0.02858742,249.33,249.3,4.0113]
[1737765231939,0.02858742,249.33,249.29,14.82206109]
[1737765232140,8.742e-05,249.33,249.31,4.0111]
[1737765234841,8.742e-05,249.33,249.29,14.82206109]
[1737765235037,8.742e-05,249.33,249.28,0.0281584]
[1737765236645,8.742e-05,249.33,249.28,4.0397584]
[1737765237744,8.742e-05,249.33,249.29,4.0114]
[1737765238446,8.742e-05,249.33,249.28,0.0281584]
[1737765238844,4.0111,249.32,249.28,0.0281584]
[1737765239037,8.742e-05,249.33,249.28,0.0281584]
[1737765239438,8.742e-05,249.33,249.3,4.0113]
[1737765240541,8.742e-05,249.33,249.28,0.0281584]
[1737765240845,8.742e-05,249.33,249.28,14.85021949]
[1737765242040,8.742e-05,249.33,249.32,14.82206109]
[1737765242744,8.742e-05,249.33,249.28,0.0281584]
[1737765243046,4.0114,249.3,249.28,0.0281584]
[1737765243249,8.742e-05,249.33,249.11,14.82206109]
[1737765243439,1.3102,249.33,249.11,14.82206109]
[1737765244348,4.0116,249.29,249.11,14.82206109]
[1737765244548,0.02844209,249.25,249.21,0.03042501]
[1737765246148,0.02844209,249.25,249.22,4.0126]
[1737765247648,0.02844209,249.25,249.21,0.03042501]
[1737765247850,0.02844209,249.25,249.23,4.0124]
[1737765248049,4.209e-05,249.25,249.23,18.83446109]
[1737765248454,1.2884,249.45,249.24,14.82206109]
[1737765248650,2.571,249.58,249.33,14.82206109]
[1737765248849,3.8594,249.58,249.37,14.82206109]
[1737765249250,3.8594,249.58,249.41,14.82206109]
[1737765249655,0.02673224,249.52,249.47,0.02694715]
[1737765251956,3.224e-05,249.52,249.49,14.82206109]
[1737765252457,3.224e-05,249.52,249.5,4.008]
[1737765254858,1.3052,249.75,249.64,4.0058]
[1737765255155,1.3052,249.75,249.54,14.82206109]
[1737765255461,14.82206109,249.72,249.54,14.82206109]
[1737765255855,0.02676455,249.65,249.61,0.0276457]
[1737765258265,6.455e-05,249.65,249.62,14.82206109]
[1737765258758,6.455e-05,249.65,249.63,4.006]
[1737765260161,6.455e-05,249.65,249.62,14.82206109]
[1737765260560,6.455e-05,249.65,249.61,0.0276457]
[1737765262063,4.0061,249.63,249.61,0.0276457]
[1737765262565,6.455e-05,249.65,249.61,0.0276457]
[1737765262866,4.0061,249.63,249.61,0.0276457]
[1737765263560,6.455e-05,249.65,249.61,0.0276457]
[1737765265068,6.455e-05,249.65,249.62,4.0061]
[1737765265663,6.455e-05,249.65,249.63,4.006]
[1737765266359,6.455e-05,249.65,249.61,4.0340457]
[1737765267369,6.455e-05,249.65,249.62,4.0062]
[1737765267870,6.455e-05,249.65,249.63,28.04493327]
[1737765270163,6.455e-05,249.65,249.63,43.22493327]
[1737765270966,2.6218,249.84,249.63,43.22493327]
[1737765270967,1.2661,249.92,249.65,12.02]
[1737765271167,2.6624,249.91,249.78,24.03893327]
[1737765271369,4.0018,249.9,249.8,4.0032]
[1737765271861,4.0021,249.88,249.8,4.0032]
[1737765272068,0.03060567,249.87,249.83,0.02828285]
[1737765272869,0.03060567,249.87,249.84,4.0026]
[1737765273268,0.03060567,249.87,249.83,0.02828285]
[1737765273669,0.03060567,249.87,249.85,4.0025]
[1737765273870,0.03060567,249.87,249.86,24.03893327]
[1737765275568,0.03060567,249.87,249.83,0.02828285]
[1737765276071,0.03060567,249.87,249.84,4.0027]
[1737765277071,0.03060567,249.87,249.85,4.0025]
[1737765277271,0.03060567,249.87,249.86,24.03893327]
[1737765278571,0.03060567,249.87,249.83,0.02828285]
[1737765279971,0.03060567,249.87,249.86,24.03893327]
[1737765281676,0.03060567,249.87,249.86,14.75792254]
[1737765282175,5.67e-06,249.87,249.86,14.75792254]
[1737765283175,5.67e-06,249.87,249.85,4.0025]
[1737765285982,5.67e-06,249.87,249.83,0.02828285]
[1737765287881,5.67e-06,249.87,249.72,14.75792254]
[1737765288177,17.42792254,249.91,249.72,14.75792254]
[1737765288683,2.67,249.91,249.8,14.75792254]
[1737765289085,0.02802497,249.88,249.83,0.0269781]
[1737765289580,0.02802497,249.88,249.84,14.75792254]
[1737765289775,2.497e-05,249.88,249.86,4.0023]
[1737765293883,2.497e-05,249.88,249.86,16.0223]
[1737765298390,2.497e-05,249.88,249.86,4.0023]
[1737765302588,2.497e-05,249.88,249.87,12.02]
[1737765302890,2.497e-05,249.88,249.87,298.75496183]
[1737765303086,2.497e-05,249.88,249.87,298.82041621]
[1737765303294,2.497e-05,249.88,249.87,299.55536195]
[1737765304789,2.497e-05,249.88,249.87,374.43536195]
[1737765305294,1.3911,250.1,249.94,12.02]
[1737765305494,1.3911,250.1,250.06,14.75792254]
[1737765306394,1.3911,250.1,249.96,14.75792254]
[1737765306587,3.9995,250.04,249.96,14.75792254]
[1737765306787,1.3911,250.1,250.0,0.03030358]
[1737765306990,0.02950323,250.03,249.92,14.75792254]
[1737765307194,4.0,250.02,249.93,4.0011]
[1737765307393,1.3302,250.01,249.92,14.75792254]
[1737765307591,1.3302,250.01,249.99,4.0003]
[1737765307795,1.3302,250.01,249.96,14.75792254]
[1737765308191,1.3302,250.01,249.92,14.75792254]
[1737765308898,1.3302,250.01,249.89,4.0018]
[1737765309191,1.3302,250.01,249.88,14.75792254]
[1737765309495,0.0252584,249.97,249.93,0.02604126]
[1737765309685,0.0252584,249.97,249.92,14.75792254]
[1737765310489,4.0259584,249.97,249.87,14.75792254]
[1737765310692,1.3302,250.01,249.83,14.75792254]
[1737765310995,4.0017,249.91,249.9,0.02893907]
[1737765311195,0.02599831,249.94,249.83,14.75792254]
[1737765311595,0.02599831,249.94,249.87,4.0022]
[1737765312396,0.02599831,249.94,249.88,0.02904212]
[1737765312598,0.02599831,249.94,249.85,4.0025]
[1737765312997,4.0015,249.92,249.83,14.75792254]
[1737765313192,4.0015,249.92,249.79,14.75792254]
[1737765313395,1.3694,249.96,249.79,14.75792254]
[1737765313895,1.3694,249.96,249.85,0.02980402]
[1737765313896,0.02724432,249.9,249.85,0.02980402]
[1737765314198,0.02724432,249.9,249.87,4.0022]
[1737765314595,0.02724432,249.9,249.85,0.02980402]
[1737765316195,0.02724432,249.9,249.75,14.75792254]
[1737765316500,1.3694,249.96,249.75,14.75792254]
[1737765316701,14.75792254,249.95,249.75,14.75792254]
[1737765317099,4.0023,249.87,249.78,4.0036]
[1737765317400,1.3836,249.86,249.83,0.02775413]
[1737765317600,1.3836,249.86,249.75,14.75792254]
[1737765318803,1.3836,249.86,249.78,0.02825834]
[1737765319202,1.3836,249.86,249.79,14.75792254]
[1737765319905,1.3836,249.86,249.78,0.02825834]
[1737765320105,1.3836,249.86,249.79,4.0035]
[1737765320304,1.3836,249.86,249.78,0.02825834]
[1737765320502,1.3836,249.86,249.71,14.75792254]
[1737765320696,1.3836,249.86,249.67,14.75792254]
[1737765321306,4.0032,249.81,249.72,4.0045]
[1737765321609,0.02855165,249.79,249.63,14.75792254]
[1737765321815,4.0046,249.73,249.63,4.006]
[1737765322012,1.3851,249.8,249.59,14.75792254]
[1737765322710,1.3851,249.8,249.54,3.04]
[1737765322711,1.3932,249.79,249.64,14.75792254]
[1737765322910,0.02955875,249.72,249.67,0.02901869]
[1737765323107,0.02955875,249.72,249.69,4.005]
[1737765323304,0.02955875,249.72,249.68,14.75792254]
[1737765323506,5.875e-05,249.72,249.68,14.75792254]
[1737765323910,5.875e-05,249.72,249.7,4.0049]
[1737765329119,5.875e-05,249.72,249.71,14.75792254]
[1737765331525,5.875e-05,249.72,249.71,26.77792254]
[1737765332624,5.875e-05,249.72,249.71,27.51329918]
[1737765332913,5.875e-05,249.72,249.71,26.77792254]
[1737765333113,2.6385,249.99,249.71,42.27117675]
[1737765333315,2.6385,249.99,249.94,4.0011]
[1737765334322,2.6385,249.99,249.94,0.02970513]
[1737765334323,2.66778479,249.99,249.94,0.02970513]
[1737765337721,2.66778479,249.99,249.96,4.0007]
[1737765339023,2.66778479,249.99,249.94,0.02970513]
[1737765339226,2.66778479,249.99,249.97,4.0006]
[1737765339725,2.66778479,249.99,249.94,0.02970513]
[1737765340526,2.66778479,249.99,249.84,14.75792254]
[1737765340728,2.6385,249.99,249.84,14.75792254]
[1737765341027,2.6385,249.99,249.8,14.75792254]
[1737765341325,4.0023,249.87,249.8,14.75792254]
[1737765341520,17.39642254,249.99,249.76,14.75792254]
[1737765341724,0.02995644,249.86,249.81,0.0294509]
[1737765341922,2.6385,249.99,249.85,4.0024]
[1737765341923,4.0011,249.95,249.85,4.0024]
[1737765342230,0.0293404,249.86,249.81,0.02925712]
[1737765342423,1.3484,249.94,249.85,0.0305707]
[1737765342630,4.0023,249.87,249.78,4.0036]
[1737765342828,4.0023,249.87,249.76,14.75792254]
[1737765343733,0.02910577,249.84,249.79,0.0215975]
[1737765344235,0.02910577,249.84,249.79,4.0250975]
[1737765344926,4.0029,249.83,249.79,0.0215975]
[1737765345229,0.02910577,249.84,249.79,0.0215975]
[1737765345626,4.03190577,249.84,249.79,0.0215975]
[1737765346326,0.02910577,249.84,249.79,0.0215975]
[1737765347122,4.03190577,249.84,249.79,0.0215975]
[1737765347531,0.02910577,249.84,249.79,0.0215975]
[1737765347730,0.02910577,249.84,249.8,14.75792254]
[1737765348028,0.02910577,249.84,249.82,4.003]
[1737765348234,0.02910577,249.84,249.8,14.75792254]
[1737765348435,0.02910577,249.84,249.79,0.0215975]
[1737765350935,0.02910577,249.84,249.82,4.003]
[1737765352235,0.00195184,249.84,249.82,4.003]
[1737765353941,0.00195184,249.84,249.79,0.0215975]
[1737765354437,4.003,249.83,249.79,0.0215975]
[1737765354938,0.00195184,249.84,249.79,0.0215975]
[1737765355843,4.0029,249.83,249.79,0.0215975]
[1737765356242,0.00195184,249.84,249.79,0.0215975]
[1737765356543,0.00195184,249.84,249.79,4.0249975]
[1737765356942,0.00195184,249.84,249.79,0.0215975]
[1737765357445,0.00195184,249.84,249.8,14.75792254]
[1737765357640,0.00195184,249.84,249.82,4.003]
[1737765359346,0.00195184,249.84,249.8,18.76112254]
[1737765359548,0.00195184,249.84,249.8,4.0032]
[1737765360251,0.00195184,249.84,249.79,0.0215975]
[1737765361144,0.00195184,249.84,249.8,14.75792254]
[1737765362251,0.00195184,249.84,249.83,4.0029]
[1737765363347,3.24,250.09,249.91,4.0015]
[1737765363553,2.7469,250.02,249.89,14.75792254]
[1737765364050,2.7469,250.02,249.81,14.75792254]
[1737765364250,4.0018,249.9,249.81,14.75792254]
[1737765364553,0.02649434,249.88,249.83,0.02886825]
[1737765365750,0.02649434,249.88,249.77,14.75792254]
[1737765365951,1.3606,249.88,249.72,14.75792254]
[1737765366145,1.3306,249.87,249.72,14.75792254]
[1737765367047,0.02822342,249.82,249.77,0.02183502]
[1737765367353,0.02822342,249.82,249.67,14.75792254]
[1737765367548,1.3306,249.87,249.67,14.75792254]
[1737765367754,4.0041,249.76,249.67,14.75792254]
[1737765368351,4.0038,249.78,249.68,4.0052]
[1737765368551,0.02645154,249.74,249.68,4.0052]
[1737765368853,0.02645154,249.74,249.67,14.75792254]
[1737765369452,0.02645154,249.74,249.67,18.76332254]
[1737765370251,0.02645154,249.74,249.59,74.94]
[1737765370452,0.02645154,249.74,249.57,1.2622]
[1737765370650,0.02645154,249.74,249.5,1.3345]
[1737765370852,4.0049,249.71,249.61,4.0063]
[1737765371053,4.0049,249.71,249.5,3.978]
[1737765371247,0.02556957,249.68,249.6,18.76442254]
[1737765371452,0.02556957,249.68,249.6,14.75792254]
[1737765371955,0.02556957,249.68,249.64,14.75792254]
[1737765372151,2.5428,249.73,249.64,14.75792254]
[1737765372353,0.0293949,249.68,249.65,4.0057]
[1737765372553,0.0293949,249.68,249.64,14.75792254]
[1737765373053,0.0293949,249.68,249.67,4.0054]
[1737765376258,0.0293949,249.68,249.64,14.75792254]
[1737765376458,0.0293949,249.68,249.66,4.0056]
[1737765376655,0.0293949,249.68,249.66,18.76352254]
[1737765379756,9.49e-05,249.68,249.66,18.76352254]
[1737765384863,9.49e-05,249.68,249.65,0.02751478]
[1737765385666,9.49e-05,249.68,249.67,4.0054]
[1737765387671,9.49e-05,249.68,249.67,13.24433519]
[1737765393270,9.49e-05,249.68,249.67,9.23893519]
[1737765393874,9.49e-05,249.68,249.65,0.02751478]
[1737765394276,9.49e-05,249.68,249.67,9.23893519]
[1737765401888,9.49e-05,249.68,249.67,18.47787038]
[1737765402084,9.49e-05,249.68,249.67,22.52967038]
[1737765402983,9.49e-05,249.68,249.67,34.54967038]
[1737765404884,9.49e-05,249.68,249.67,22.52967038]
[1737765405478,9.49e-05,249.68,249.67,13.29073519]
[1737765408180,9.49e-05,249.68,249.67,22.52967038]
[1737765416076,9.49e-05,249.68,249.67,25.54967038]
[1737765418484,9.49e-05,249.68,249.67,37.56967038]
[1737765419687,9.49e-05,249.68,249.67,38.30519854]
[1737765419882,9.49e-05,249.68,249.67,38.30516891]
[1737765421287,9.49e-05,249.68,249.67,24.9045112]
[1737765421586,9.49e-05,249.68,249.67,9.23893519]
[1737765428794,9.49e-05,249.68,249.65,0.02751478]
[1737765429495,9.49e-05,249.68,249.65,4.03321478]
[1737765429695,9.49e-05,249.68,249.65,0.02751478]
[1737765430197,9.49e-05,249.68,249.64,9.23893519]
[1737765430496,9.49e-05,249.68,249.6,9.23893519]
[1737765430692,4.0052,249.69,249.6,9.23893519]
[1737765431087,4.0063,249.62,249.47,136.89383467]
[1737765431395,9.23893519,249.68,249.51,9.23893519]
[1737765431590,0.02727743,249.57,249.51,9.23893519]
[1737765431896,0.0297393,249.56,249.51,7.14453519]
[1737765432100,9.23893519,249.68,249.51,7.14453519]
[1737765432293,0.02955358,249.56,249.52,4.0078]
[1737765432494,9.23893519,249.65,249.48,9.23893519]
[1737765432695,0.02990724,249.56,249.44,9.23893519]
[1737765432902,4.0079,249.52,249.44,9.23893519]
[1737765433191,4.0079,249.52,249.4,32.50419279]
[1737765433396,0.02869791,249.5,249.4,32.50419279]
[1737765433797,0.02869791,249.5,249.41,4.0095]
[1737765434201,0.02869791,249.5,249.36,14.81776049]
[1737765434398,0.02869791,249.5,249.4,14.81776049]
[1737765434700,0.02869791,249.5,249.44,14.81776049]
[1737765436093,0.02869791,249.5,249.48,4.0084]
[1737765436295,9.791e-05,249.5,249.48,4.0084]
[1737765436499,9.791e-05,249.5,249.48,18.82616049]
[1737765439997,9.791e-05,249.5,249.48,4.0084]
[1737765440401,14.81776049,249.89,249.49,101.83776049]
[1737765440701,14.81776049,249.79,249.58,14.81776049]
[1737765440896,4.0053,249.68,249.58,4.0068]
[1737765441101,14.81776049,249.79,249.54,98.84077594]
[1737765441399,14.81776049,249.74,249.54,98.84077594]
[1737765441608,14.84491597,249.69,249.54,98.84077594]
[1737765441794,14.81776049,249.64,249.31,3.06]